[Event "Late-Titled-Tuesday-Blitz-September-26-2023"]
[Site "Chess.com"]
[Date "2023.09.26"]
[Round "5"]
[White "krzyzan94"]
[Black "ValeriyGrinev"]
[Result "0-1"]
[WhiteElo "2800"]
[BlackElo "2574"]
[TimeControl "180+1"]
[EndTime "14:53:20 PDT"]
[Termination "ValeriyGrinev won on time"]

1. Nf3 {[%clk 0:03:00.9]} 1... c5 {[%clk 0:03:00.1]} 2. g3 {[%clk 0:03:00.5]}
2... Nc6 {[%clk 0:03:00]} 3. Bg2 {[%clk 0:02:57.9]} 3... g6 {[%clk 0:03:00.6]}
4. O-O {[%clk 0:02:53.4]} 4... Bg7 {[%clk 0:03:01.3]} 5. e4 {[%clk 0:02:49.8]}
5... d6 {[%clk 0:03:00.4]} 6. d3 {[%clk 0:02:49]} 6... e5 {[%clk 0:02:59.7]} 7.
a3 {[%clk 0:02:44]} 7... a5 {[%clk 0:02:57.9]} 8. a4 {[%clk 0:02:43.3]} 8...
Nge7 {[%clk 0:02:58.1]} 9. Na3 {[%clk 0:02:43.2]} 9... O-O {[%clk 0:02:58.3]}
10. Nc4 {[%clk 0:02:43.8]} 10... h6 {[%clk 0:02:57.5]} 11. c3 {[%clk 0:02:42.1]}
11... Be6 {[%clk 0:02:56.9]} 12. Nh4 {[%clk 0:02:35.9]} 12... d5 {[%clk
0:02:55.5]} 13. exd5 {[%clk 0:02:26.4]} 13... Bxd5 {[%clk 0:02:55.5]} 14. Qe2
{[%clk 0:02:24.7]} 14... Bxg2 {[%clk 0:02:39.4]} 15. Nxg2 {[%clk 0:02:24.2]}
15... Re8 {[%clk 0:02:40.3]} 16. h4 {[%clk 0:02:19.7]} 16... Nf5 {[%clk
0:02:31.3]} 17. h5 {[%clk 0:02:16.7]} 17... g5 {[%clk 0:02:28.5]} 18. Nge3
{[%clk 0:02:13.1]} 18... Nd6 {[%clk 0:02:27.1]} 19. Nxd6 {[%clk 0:02:11.8]}
19... Qxd6 {[%clk 0:02:28]} 20. Nf5 {[%clk 0:02:12.5]} 20... Qe6 {[%clk
0:02:25.4]} 21. Qe4 {[%clk 0:02:05.9]} 21... Rad8 {[%clk 0:02:21.9]} 22. Be3
{[%clk 0:02:02.4]} 22... b6 {[%clk 0:02:20.8]} 23. Rfe1 {[%clk 0:01:43.9]} 23...
Ne7 {[%clk 0:02:20.4]} 24. Nxe7+ {[%clk 0:01:04.3]} 24... Rxe7 {[%clk
0:02:19.5]} 25. b4 {[%clk 0:00:41.1]} 25... f5 {[%clk 0:02:13]} 26. Qc4 {[%clk
0:00:41.3]} 26... Qxc4 {[%clk 0:02:07.9]} 27. dxc4 {[%clk 0:00:42.2]} 27... f4
{[%clk 0:02:07.7]} 28. Bc1 {[%clk 0:00:31.5]} 28... e4 {[%clk 0:02:06.7]} 29.
Ra3 {[%clk 0:00:15.5]} 29... axb4 {[%clk 0:02:04.4]} 30. cxb4 {[%clk 0:00:15.8]}
30... cxb4 {[%clk 0:02:04.9]} 31. Rb3 {[%clk 0:00:15.8]} 31... Bc3 {[%clk
0:02:03.4]} 32. Rf1 {[%clk 0:00:02.7]} 32... e3 {[%clk 0:02:02.6]} 33. fxe3
{[%clk 0:00:03.6]} 33... fxe3 {[%clk 0:02:03.1]} 34. Bxe3 {[%clk 0:00:02.6]}
34... Rxe3 {[%clk 0:02:02.1]} 35. Kg2 {[%clk 0:00:03.3]} 35... Rd2+ {[%clk
0:02:00.7]} 36. Kh3 {[%clk 0:00:03.4]} 36... Rdd3 {[%clk 0:02:00.3]} 37. Kg4
{[%clk 0:00:03.5]} 37... Rxg3+ {[%clk 0:01:58.1]} 38. Kf5 {[%clk 0:00:03.7]}
38... Rgf3+ {[%clk 0:01:58]} 39. Rxf3 {[%clk 0:00:04.3]} 39... Rxf3+ {[%clk
0:01:58.5]} 40. Ke4 {[%clk 0:00:03.7]} 40... Rf1 {[%clk 0:01:56]} 41. c5 {[%clk
0:00:02.2]} 41... bxc5 {[%clk 0:01:55.1]} 42. Kd5 {[%clk 0:00:02.1]} 42... g4
{[%clk 0:01:54.5]} 43. a5 {[%clk 0:00:02.1]} 43... g3 {[%clk 0:01:54]} 0-1

[Event "Late-Titled-Tuesday-Blitz-September-26-2023"]
[Site "Chess.com"]
[Date "2023.09.26"]
[Round "5"]
[White "Yushko_Olga"]
[Black "rikchessmx"]
[Result "0-1"]
[WhiteElo "2041"]
[BlackElo "2359"]
[TimeControl "180+1"]
[EndTime "14:53:24 PDT"]
[Termination "rikchessmx won by checkmate"]

1. d4 {[%clk 0:03:00]} 1... Nf6 {[%clk 0:02:46.3]} 2. c4 {[%clk 0:02:59.8]} 2...
e6 {[%clk 0:02:47.2]} 3. Nc3 {[%clk 0:02:59.6]} 3... d5 {[%clk 0:02:48.1]} 4. e3
{[%clk 0:02:58.3]} 4... c6 {[%clk 0:02:47.8]} 5. Nf3 {[%clk 0:02:58.4]} 5...
Nbd7 {[%clk 0:02:47.6]} 6. Be2 {[%clk 0:02:58.3]} 6... Bd6 {[%clk 0:02:47.5]} 7.
O-O {[%clk 0:02:57.6]} 7... Qe7 {[%clk 0:02:48]} 8. cxd5 {[%clk 0:02:57.2]} 8...
exd5 {[%clk 0:02:47.3]} 9. a3 {[%clk 0:02:55.9]} 9... O-O {[%clk 0:02:47.2]} 10.
b4 {[%clk 0:02:55.8]} 10... a6 {[%clk 0:02:46.7]} 11. Bb2 {[%clk 0:02:48]} 11...
Re8 {[%clk 0:02:45.9]} 12. Bd3 {[%clk 0:02:48]} 12... Ne4 {[%clk 0:02:44.6]} 13.
Rc1 {[%clk 0:02:47.6]} 13... Ndf6 {[%clk 0:02:43.9]} 14. Qc2 {[%clk 0:02:39.3]}
14... Bg4 {[%clk 0:02:35.7]} 15. Ne5 {[%clk 0:02:35.6]} 15... Bc8 {[%clk
0:02:23.8]} 16. Nxe4 {[%clk 0:02:30.2]} 16... dxe4 {[%clk 0:02:21.4]} 17. Bxe4
{[%clk 0:02:30.4]} 17... Nxe4 {[%clk 0:02:20.8]} 18. Qxe4 {[%clk 0:02:29.1]}
18... f6 {[%clk 0:02:20]} 19. f4 {[%clk 0:02:14.8]} 19... fxe5 {[%clk
0:02:16.1]} 20. fxe5 {[%clk 0:02:15.7]} 20... Bc7 {[%clk 0:02:13.1]} 21. d5
{[%clk 0:02:12]} 21... cxd5 {[%clk 0:02:13]} 22. Qxd5+ {[%clk 0:02:12.1]} 22...
Be6 {[%clk 0:02:13.5]} 23. Qxb7 {[%clk 0:02:11.5]} 23... Rac8 {[%clk 0:02:07.7]}
24. Qxa6 {[%clk 0:02:04.9]} 24... Qg5 {[%clk 0:02:00.8]} 25. Bd4 {[%clk
0:01:55.8]} 25... Bxe5 {[%clk 0:01:54.4]} 26. Rxc8 {[%clk 0:01:43.2]} 26... Bxc8
{[%clk 0:01:53.5]} 27. Qc4+ {[%clk 0:01:38.6]} 27... Kh8 {[%clk 0:01:48.8]} 28.
Qc6 {[%clk 0:01:33]} 28... Qe7 {[%clk 0:01:41]} 29. Bc5 {[%clk 0:01:27.9]} 29...
Qd7 {[%clk 0:01:27.5]} 30. Qe4 {[%clk 0:01:23.1]} 30... Bb7 {[%clk 0:01:23.7]}
31. Qxe5 {[%clk 0:01:20.4]} 31... h6 {[%clk 0:01:14.3]} 32. Rf8+ {[%clk
0:01:13.2]} 32... Rxf8 {[%clk 0:01:10.8]} 33. Bxf8 {[%clk 0:01:14.1]} 33... Kg8
{[%clk 0:01:10.9]} 34. Bd6 {[%clk 0:01:11.7]} 34... Qg4 {[%clk 0:01:07]} 35.
Qe8+ {[%clk 0:01:02]} 35... Kh7 {[%clk 0:01:04.5]} 36. e4 {[%clk 0:00:58.9]}
36... Bxe4 {[%clk 0:01:02.1]} 37. Bg3 {[%clk 0:00:56.2]} 37... Qe2 {[%clk
0:00:59.6]} 38. Qf7 {[%clk 0:00:53.5]} 38... Qxg2# {[%clk 0:00:58.4]} 0-1

[Event "Late-Titled-Tuesday-Blitz-September-26-2023"]
[Site "Chess.com"]
[Date "2023.09.26"]
[Round "5"]
[White "lefonghua"]
[Black "DeArron_Fox"]
[Result "1-0"]
[WhiteElo "2637"]
[BlackElo "2474"]
[TimeControl "180+1"]
[EndTime "14:53:28 PDT"]
[Termination "lefonghua won on time"]

1. d4 {[%clk 0:03:00.9]} 1... d5 {[%clk 0:02:50.7]} 2. c4 {[%clk 0:03:00.9]}
2... e6 {[%clk 0:02:50.5]} 3. Nc3 {[%clk 0:03:01.1]} 3... Nf6 {[%clk 0:02:48.6]}
4. cxd5 {[%clk 0:03:01.5]} 4... exd5 {[%clk 0:02:49.5]} 5. Bg5 {[%clk
0:03:01.7]} 5... c6 {[%clk 0:02:48.7]} 6. e3 {[%clk 0:03:02.2]} 6... Be7 {[%clk
0:02:49.1]} 7. Bd3 {[%clk 0:03:02.5]} 7... Nbd7 {[%clk 0:02:48.7]} 8. Qc2 {[%clk
0:03:02.8]} 8... Nh5 {[%clk 0:02:47.7]} 9. Bxe7 {[%clk 0:03:02.6]} 9... Qxe7
{[%clk 0:02:48.6]} 10. Nge2 {[%clk 0:03:03.1]} 10... g6 {[%clk 0:02:46.4]} 11.
O-O {[%clk 0:03:03.1]} 11... O-O {[%clk 0:02:45.9]} 12. Rae1 {[%clk 0:03:03.5]}
12... Ndf6 {[%clk 0:02:44.7]} 13. Nc1 {[%clk 0:03:01.1]} 13... Ng7 {[%clk
0:02:27.1]} 14. f3 {[%clk 0:03:00.6]} 14... Re8 {[%clk 0:01:17.2]} 15. Qf2
{[%clk 0:02:51.8]} 15... Nf5 {[%clk 0:00:23.2]} 16. Re2 {[%clk 0:02:43]} 16...
c5 {[%clk 0:00:14.4]} 17. dxc5 {[%clk 0:02:39.3]} 17... Qxc5 {[%clk 0:00:15.3]}
18. Nb3 {[%clk 0:02:39.1]} 18... Qb6 {[%clk 0:00:13.2]} 19. Nd4 {[%clk
0:02:29.4]} 19... Nxd4 {[%clk 0:00:06.4]} 20. exd4 {[%clk 0:02:30.3]} 20... Rxe2
{[%clk 0:00:06.2]} 21. Bxe2 {[%clk 0:02:30.8]} 21... Bf5 {[%clk 0:00:05.1]} 22.
g4 {[%clk 0:02:30.7]} 22... Be6 {[%clk 0:00:04.9]} 23. Rd1 {[%clk 0:02:26.8]}
23... Re8 {[%clk 0:00:03.5]} 24. Bb5 {[%clk 0:02:25.7]} 24... Bd7 {[%clk
0:00:02.8]} 25. Bd3 {[%clk 0:02:25.3]} 25... Bc6 {[%clk 0:00:02.5]} 26. Kg2
{[%clk 0:02:21.3]} 26... Qd8 {[%clk 0:00:02.8]} 27. Re1 {[%clk 0:02:14.5]} 27...
Kg7 {[%clk 0:00:03.2]} 28. Re5 {[%clk 0:02:13.8]} 28... Nd7 {[%clk 0:00:02.7]}
29. Re3 {[%clk 0:02:12.6]} 29... Rxe3 {[%clk 0:00:02.6]} 30. Qxe3 {[%clk
0:02:13.1]} 30... Qf6 {[%clk 0:00:03.5]} 31. f4 {[%clk 0:02:12.4]} 31... Qe6
{[%clk 0:00:02.6]} 32. Qxe6 {[%clk 0:02:11.5]} 32... fxe6 {[%clk 0:00:03.5]} 33.
Kf2 {[%clk 0:02:07.1]} 33... h6 {[%clk 0:00:02.9]} 34. Ke3 {[%clk 0:02:06.3]}
34... g5 {[%clk 0:00:03.2]} 35. Ne2 {[%clk 0:02:06.7]} 35... Kf6 {[%clk
0:00:02.7]} 36. Ng3 {[%clk 0:02:05.9]} 36... gxf4+ {[%clk 0:00:02.7]} 37. Kxf4
{[%clk 0:02:06.8]} 37... e5+ {[%clk 0:00:02.5]} 38. dxe5+ {[%clk 0:02:07.4]}
38... Nxe5 {[%clk 0:00:03.4]} 39. Nh5+ {[%clk 0:02:06.4]} 39... Ke6 {[%clk
0:00:04.1]} 40. Bf5+ {[%clk 0:02:05.8]} 40... Kd6 {[%clk 0:00:04.3]} 41. Nf6
{[%clk 0:02:05.6]} 41... d4 {[%clk 0:00:03.8]} 42. Ng8 {[%clk 0:02:05.8]} 42...
Nf7 {[%clk 0:00:03]} 43. Bg6 {[%clk 0:02:04.5]} 43... Ne5 {[%clk 0:00:03.4]} 44.
Bh5 {[%clk 0:02:01.3]} 44... Nc4 {[%clk 0:00:02.5]} 45. b3 {[%clk 0:02:00.1]}
45... Nd2 {[%clk 0:00:01.9]} 46. Nxh6 {[%clk 0:01:59.7]} 46... d3 {[%clk
0:00:02.1]} 47. Ke3 {[%clk 0:01:59.3]} 47... Nf1+ {[%clk 0:00:02.7]} 48. Kxd3
{[%clk 0:01:59.2]} 48... Nxh2 {[%clk 0:00:03.6]} 49. g5 {[%clk 0:01:57.6]} 49...
Nf1 {[%clk 0:00:02.1]} 50. Nf5+ {[%clk 0:01:55.7]} 1-0

[Event "Late-Titled-Tuesday-Blitz-September-26-2023"]
[Site "Chess.com"]
[Date "2023.09.26"]
[Round "5"]
[White "MMSANCHEZ"]
[Black "hansen"]
[Result "1-0"]
[WhiteElo "2679"]
[BlackElo "2912"]
[TimeControl "180+1"]
[EndTime "14:53:36 PDT"]
[Termination "MMSANCHEZ won on time"]

1. d4 {[%clk 0:03:00.9]} 1... Nf6 {[%clk 0:02:58.9]} 2. Nf3 {[%clk 0:03:01]}
2... g6 {[%clk 0:02:59.3]} 3. c4 {[%clk 0:03:00.3]} 3... Bg7 {[%clk 0:02:59.7]}
4. Nc3 {[%clk 0:03:00.7]} 4... d5 {[%clk 0:03:00.5]} 5. Bg5 {[%clk 0:03:00.6]}
5... Ne4 {[%clk 0:03:00.6]} 6. Bf4 {[%clk 0:03:01.1]} 6... Nxc3 {[%clk
0:02:57.1]} 7. bxc3 {[%clk 0:03:00.8]} 7... dxc4 {[%clk 0:02:55.4]} 8. e3 {[%clk
0:02:59]} 8... Be6 {[%clk 0:02:54.5]} 9. Qb1 {[%clk 0:02:57.9]} 9... Bd5 {[%clk
0:02:47.2]} 10. e4 {[%clk 0:02:49.7]} 10... Bc6 {[%clk 0:02:22.1]} 11. Bxc4
{[%clk 0:02:48.3]} 11... O-O {[%clk 0:02:20.9]} 12. O-O {[%clk 0:02:47.7]} 12...
e6 {[%clk 0:02:16.9]} 13. Ne5 {[%clk 0:02:37.6]} 13... Qc8 {[%clk 0:02:06.6]}
14. Nxc6 {[%clk 0:02:33.6]} 14... Nxc6 {[%clk 0:02:05.8]} 15. Qb5 {[%clk
0:02:23.4]} 15... a6 {[%clk 0:02:01.6]} 16. Qc5 {[%clk 0:02:21.3]} 16... Rd8
{[%clk 0:01:57.1]} 17. Rab1 {[%clk 0:02:17.5]} 17... e5 {[%clk 0:01:47.8]} 18.
dxe5 {[%clk 0:02:11.7]} 18... Qg4 {[%clk 0:01:13.2]} 19. Bg3 {[%clk 0:01:52.2]}
19... Qxe4 {[%clk 0:01:02.1]} 20. Rfe1 {[%clk 0:01:48.9]} 20... Qf5 {[%clk
0:00:56.8]} 21. Rxb7 {[%clk 0:01:45.8]} 21... Nb8 {[%clk 0:00:01.8]} 22. Rxc7
{[%clk 0:01:27.6]} 22... Nd7 {[%clk 0:00:02.1]} 23. Qe7 {[%clk 0:01:05.2]} 23...
Bf8 {[%clk 0:00:01.6]} 24. Qh4 {[%clk 0:00:52.6]} 1-0

[Event "Late-Titled-Tuesday-Blitz-September-26-2023"]
[Site "Chess.com"]
[Date "2023.09.26"]
[Round "5"]
[White "fyall777"]
[Black "NicholasTakano"]
[Result "1-0"]
[WhiteElo "2569"]
[BlackElo "2408"]
[TimeControl "180+1"]
[EndTime "14:53:41 PDT"]
[Termination "fyall777 won on time"]

1. d4 {[%clk 0:02:57.2]} 1... Nf6 {[%clk 0:02:59.7]} 2. c4 {[%clk 0:02:57.1]}
2... g6 {[%clk 0:02:58.6]} 3. Nf3 {[%clk 0:02:58]} 3... Bg7 {[%clk 0:02:56.6]}
4. g3 {[%clk 0:02:58.9]} 4... d6 {[%clk 0:02:56.6]} 5. Bg2 {[%clk 0:02:59.8]}
5... O-O {[%clk 0:02:56.6]} 6. O-O {[%clk 0:03:00.7]} 6... Nbd7 {[%clk
0:02:56.8]} 7. Nc3 {[%clk 0:03:01.2]} 7... e5 {[%clk 0:02:57.3]} 8. e3 {[%clk
0:03:01.5]} 8... c6 {[%clk 0:02:56.8]} 9. b3 {[%clk 0:02:59.1]} 9... Re8 {[%clk
0:02:53.1]} 10. Ba3 {[%clk 0:02:57.6]} 10... exd4 {[%clk 0:02:48.8]} 11. Nxd4
{[%clk 0:02:51.8]} 11... Nc5 {[%clk 0:02:48.1]} 12. Rc1 {[%clk 0:02:48.7]} 12...
Qc7 {[%clk 0:02:31.2]} 13. b4 {[%clk 0:02:33.1]} 13... Ne6 {[%clk 0:02:28.7]}
14. Nd5 {[%clk 0:02:28.3]} 14... Qd8 {[%clk 0:01:54.5]} 15. Nxe6 {[%clk
0:02:19.4]} 15... Bxe6 {[%clk 0:01:52.4]} 16. Nxf6+ {[%clk 0:02:12.9]} 16...
Bxf6 {[%clk 0:01:50.1]} 17. b5 {[%clk 0:02:12.2]} 17... cxb5 {[%clk 0:01:34.1]}
18. cxb5 {[%clk 0:02:06]} 18... Bxa2 {[%clk 0:01:26.7]} 19. Bxb7 {[%clk
0:02:02.1]} 19... Be6 {[%clk 0:00:57.8]} 20. Qxd6 {[%clk 0:01:35.8]} 20... Qb8
{[%clk 0:00:42]} 21. Qc6 {[%clk 0:01:22.9]} 21... Bh3 {[%clk 0:00:23.5]} 22.
Rfd1 {[%clk 0:01:20.3]} 22... Re6 {[%clk 0:00:22.4]} 23. Bd6 {[%clk 0:01:17]}
23... Rxd6 {[%clk 0:00:04]} 24. Rxd6 {[%clk 0:01:15.6]} 24... Be7 {[%clk
0:00:03.1]} 25. Rdd1 {[%clk 0:01:01.2]} 25... Qe5 {[%clk 0:00:01.7]} 26. Bxa8
{[%clk 0:00:58.8]} 26... h5 {[%clk 0:00:01.5]} 27. Qe4 {[%clk 0:00:56.4]} 1-0

[Event "Late-Titled-Tuesday-Blitz-September-26-2023"]
[Site "Chess.com"]
[Date "2023.09.26"]
[Round "5"]
[White "rose107"]
[Black "leotobares"]
[Result "1-0"]
[WhiteElo "2131"]
[BlackElo "2341"]
[TimeControl "180+1"]
[EndTime "14:53:41 PDT"]
[Termination "rose107 won by checkmate"]

1. e4 {[%clk 0:03:00.9]} 1... e6 {[%clk 0:01:58]} 2. d4 {[%clk 0:02:59.3]} 2...
d5 {[%clk 0:01:57.8]} 3. e5 {[%clk 0:02:59.5]} 3... c5 {[%clk 0:01:57.9]} 4. c3
{[%clk 0:02:59.7]} 4... Nc6 {[%clk 0:01:58.4]} 5. Nf3 {[%clk 0:02:59.4]} 5... f6
{[%clk 0:01:58.6]} 6. Bb5 {[%clk 0:02:46.7]} 6... f5 {[%clk 0:01:58]} 7. O-O
{[%clk 0:02:45.2]} 7... Ne7 {[%clk 0:01:56.3]} 8. Ng5 {[%clk 0:02:33.5]} 8... h6
{[%clk 0:01:52.5]} 9. Nh3 {[%clk 0:02:26.7]} 9... Qb6 {[%clk 0:01:51.2]} 10.
Bxc6+ {[%clk 0:02:22.2]} 10... bxc6 {[%clk 0:01:50.8]} 11. Nf4 {[%clk
0:02:17.3]} 11... g6 {[%clk 0:01:44.5]} 12. b3 {[%clk 0:01:48.4]} 12... Kf7
{[%clk 0:01:43.3]} 13. Be3 {[%clk 0:01:45.9]} 13... cxd4 {[%clk 0:01:41.3]} 14.
cxd4 {[%clk 0:01:39]} 14... Ba6 {[%clk 0:01:38.1]} 15. Re1 {[%clk 0:01:38.3]}
15... Qa5 {[%clk 0:01:26.8]} 16. Bd2 {[%clk 0:01:28.2]} 16... Qb6 {[%clk
0:01:24.5]} 17. Be3 {[%clk 0:01:25.4]} 17... Bg7 {[%clk 0:01:23]} 18. Nc3 {[%clk
0:01:24.4]} 18... Qa5 {[%clk 0:01:19.7]} 19. Na4 {[%clk 0:01:22.7]} 19... Bb5
{[%clk 0:01:19.4]} 20. Nc5 {[%clk 0:01:22]} 20... Nc8 {[%clk 0:01:13.9]} 21.
Nfxe6 {[%clk 0:01:18]} 21... Re8 {[%clk 0:01:12.1]} 22. Nxg7 {[%clk 0:01:09.6]}
22... Kxg7 {[%clk 0:01:11.5]} 23. Qc1 {[%clk 0:01:08]} 23... Rh8 {[%clk
0:01:07.3]} 24. Ne6+ {[%clk 0:01:01.9]} 24... Kf7 {[%clk 0:01:06]} 25. Nc5
{[%clk 0:00:57.7]} 25... Kg7 {[%clk 0:01:03.3]} 26. Bf4 {[%clk 0:00:51.7]} 26...
Ne7 {[%clk 0:01:00.1]} 27. e6 {[%clk 0:00:48.6]} 27... Kh7 {[%clk 0:00:58]} 28.
Bxh6 {[%clk 0:00:43.1]} 28... Bd3 {[%clk 0:00:50.6]} 29. Qg5 {[%clk 0:00:38]}
29... Qc7 {[%clk 0:00:41.9]} 30. Nd7 {[%clk 0:00:35.9]} 30... Qd6 {[%clk
0:00:37.4]} 31. Nf6# {[%clk 0:00:35.4]} 1-0

[Event "Late-Titled-Tuesday-Blitz-September-26-2023"]
[Site "Chess.com"]
[Date "2023.09.26"]
[Round "5"]
[White "cassoulet"]
[Black "brm72"]
[Result "0-1"]
[WhiteElo "2739"]
[BlackElo "2510"]
[TimeControl "180+1"]
[EndTime "14:53:46 PDT"]
[Termination "brm72 won by checkmate"]

1. d4 {[%clk 0:03:00.9]} 1... Nf6 {[%clk 0:03:00]} 2. Bg5 {[%clk 0:03:00.3]}
2... Ne4 {[%clk 0:03:00]} 3. Bf4 {[%clk 0:02:58.9]} 3... d5 {[%clk 0:03:00]} 4.
Nd2 {[%clk 0:02:59.1]} 4... Bf5 {[%clk 0:02:58.9]} 5. Ngf3 {[%clk 0:02:57.4]}
5... e6 {[%clk 0:02:57.7]} 6. c3 {[%clk 0:02:57.3]} 6... c5 {[%clk 0:02:57.3]}
7. e3 {[%clk 0:02:57.3]} 7... Nc6 {[%clk 0:02:57.2]} 8. Bb5 {[%clk 0:02:56.6]}
8... Qb6 {[%clk 0:02:56.6]} 9. Qa4 {[%clk 0:02:55.9]} 9... a6 {[%clk 0:02:37.9]}
10. Bxc6+ {[%clk 0:02:55.2]} 10... Qxc6 {[%clk 0:02:38.7]} 11. Qxc6+ {[%clk
0:02:54.7]} 11... bxc6 {[%clk 0:02:39.6]} 12. Nxe4 {[%clk 0:02:55.1]} 12... Bxe4
{[%clk 0:02:39.3]} 13. Ne5 {[%clk 0:02:47.9]} 13... Rc8 {[%clk 0:02:31.1]} 14.
f3 {[%clk 0:02:47]} 14... Bg6 {[%clk 0:02:31.1]} 15. h4 {[%clk 0:02:41.9]} 15...
f6 {[%clk 0:02:28.7]} 16. Nxg6 {[%clk 0:02:38.5]} 16... hxg6 {[%clk 0:02:29.6]}
17. O-O-O {[%clk 0:02:35.7]} 17... Kd7 {[%clk 0:02:28.9]} 18. e4 {[%clk
0:02:34.9]} 18... cxd4 {[%clk 0:02:25.2]} 19. cxd4 {[%clk 0:02:11.8]} 19... c5
{[%clk 0:02:24.3]} 20. dxc5 {[%clk 0:02:02.7]} 20... Rxc5+ {[%clk 0:02:22.8]}
21. Kb1 {[%clk 0:02:02.7]} 21... e5 {[%clk 0:02:22.7]} 22. Bg3 {[%clk
0:01:53.9]} 22... d4 {[%clk 0:02:21.2]} 23. Rd3 {[%clk 0:01:49.8]} 23... Bd6
{[%clk 0:02:18.8]} 24. Ra3 {[%clk 0:01:48.5]} 24... a5 {[%clk 0:02:12.2]} 25.
Rb3 {[%clk 0:01:47.8]} 25... Rhc8 {[%clk 0:02:11.2]} 26. a3 {[%clk 0:01:47.3]}
26... a4 {[%clk 0:02:08.6]} 27. Rb7+ {[%clk 0:01:46.6]} 27... R8c7 {[%clk
0:02:08.2]} 28. Rxc7+ {[%clk 0:01:46]} 28... Rxc7 {[%clk 0:01:58.9]} 29. Be1
{[%clk 0:01:39.3]} 29... Rb7 {[%clk 0:01:57.4]} 30. Kc2 {[%clk 0:01:38.5]} 30...
Rb3 {[%clk 0:01:56.3]} 31. Bd2 {[%clk 0:01:36.3]} 31... f5 {[%clk 0:01:54.9]}
32. Re1 {[%clk 0:01:32.8]} 32... Ke6 {[%clk 0:01:53.4]} 33. Bc1 {[%clk
0:01:28.1]} 33... Be7 {[%clk 0:01:49.8]} 34. exf5+ {[%clk 0:01:14.1]} 34... gxf5
{[%clk 0:01:50.7]} 35. h5 {[%clk 0:01:14.3]} 35... Kd5 {[%clk 0:01:49.1]} 36. h6
{[%clk 0:01:02.1]} 36... gxh6 {[%clk 0:01:47.7]} 37. Bxh6 {[%clk 0:01:03]} 37...
e4 {[%clk 0:01:47.9]} 38. fxe4+ {[%clk 0:01:01.3]} 38... fxe4 {[%clk 0:01:47.6]}
39. Bc1 {[%clk 0:01:00.4]} 39... d3+ {[%clk 0:01:47.5]} 40. Kd1 {[%clk
0:01:00.7]} 40... Bf6 {[%clk 0:01:44.4]} 41. Rh1 {[%clk 0:00:56]} 41... Bxb2
{[%clk 0:01:43.6]} 42. Rh5+ {[%clk 0:00:56.1]} 42... Kd4 {[%clk 0:01:42.8]} 43.
Bh6 {[%clk 0:00:55.1]} 43... Bxa3 {[%clk 0:01:37.4]} 44. Bg7+ {[%clk 0:00:49.3]}
44... Kc4 {[%clk 0:01:34.1]} 45. Rh4 {[%clk 0:00:44.8]} 45... Rb1+ {[%clk
0:01:00.8]} 46. Kd2 {[%clk 0:00:45]} 46... Bc1+ {[%clk 0:01:00.9]} 47. Ke1
{[%clk 0:00:38.3]} 47... Be3# {[%clk 0:01:01.8]} 0-1

[Event "Late-Titled-Tuesday-Blitz-September-26-2023"]
[Site "Chess.com"]
[Date "2023.09.26"]
[Round "5"]
[White "JG-17"]
[Black "Bodhanas"]
[Result "1-0"]
[WhiteElo "2509"]
[BlackElo "2089"]
[TimeControl "180+1"]
[EndTime "14:53:50 PDT"]
[Termination "JG-17 won by resignation"]

1. e4 {[%clk 0:02:58.3]} 1... e6 {[%clk 0:02:56.4]} 2. d4 {[%clk 0:02:52.3]}
2... d5 {[%clk 0:02:50.4]} 3. Bd3 {[%clk 0:02:45.7]} 3... dxe4 {[%clk
0:02:47.7]} 4. Bxe4 {[%clk 0:02:46.6]} 4... Nf6 {[%clk 0:02:46.6]} 5. Bf3 {[%clk
0:02:47.2]} 5... Bd6 {[%clk 0:02:44]} 6. Ne2 {[%clk 0:02:47.3]} 6... O-O {[%clk
0:02:39.6]} 7. O-O {[%clk 0:02:48]} 7... c6 {[%clk 0:02:35]} 8. c4 {[%clk
0:02:47.4]} 8... e5 {[%clk 0:02:33.3]} 9. Nbc3 {[%clk 0:02:45.3]} 9... Bf5
{[%clk 0:02:25.1]} 10. Bg5 {[%clk 0:02:43.5]} 10... Nbd7 {[%clk 0:02:22.3]} 11.
Ng3 {[%clk 0:02:39.6]} 11... Bg6 {[%clk 0:02:17.6]} 12. Re1 {[%clk 0:02:33.7]}
12... Re8 {[%clk 0:02:03.5]} 13. Qd2 {[%clk 0:02:24.2]} 13... h6 {[%clk
0:01:52.9]} 14. Bxf6 {[%clk 0:02:17.9]} 14... Nxf6 {[%clk 0:01:48.9]} 15. d5
{[%clk 0:02:10.1]} 15... cxd5 {[%clk 0:01:38.5]} 16. Nxd5 {[%clk 0:02:04.1]}
16... Nxd5 {[%clk 0:01:27.1]} 17. Bxd5 {[%clk 0:02:05]} 17... Qc7 {[%clk
0:01:24.4]} 18. Rad1 {[%clk 0:02:03.8]} 18... Rad8 {[%clk 0:01:20.9]} 19. h4
{[%clk 0:01:59.8]} 19... Bc5 {[%clk 0:01:18.5]} 20. h5 {[%clk 0:01:57.6]} 20...
Bh7 {[%clk 0:01:15.6]} 21. Qe2 {[%clk 0:01:53.4]} 21... b6 {[%clk 0:01:05.7]}
22. Qf3 {[%clk 0:01:49.9]} 22... Bd4 {[%clk 0:00:37.4]} 23. b3 {[%clk
0:01:49.9]} 23... a6 {[%clk 0:00:30.2]} 24. Rd2 {[%clk 0:01:48.5]} 24... e4
{[%clk 0:00:25.4]} 25. Bxe4 {[%clk 0:01:37.3]} 25... Bxe4 {[%clk 0:00:23.3]} 26.
Rxe4 {[%clk 0:01:38.2]} 26... Rxe4 {[%clk 0:00:22.8]} 27. Nxe4 {[%clk 0:01:39]}
27... Be5 {[%clk 0:00:20.6]} 28. Qe2 {[%clk 0:01:32.2]} 28... Rxd2 {[%clk
0:00:20.1]} 29. Qxd2 {[%clk 0:01:33.1]} 29... b5 {[%clk 0:00:16.9]} 30. Qd5
{[%clk 0:01:32.9]} 30... bxc4 {[%clk 0:00:16.4]} 31. Qxc4 {[%clk 0:01:32.7]}
31... Qxc4 {[%clk 0:00:15.7]} 32. bxc4 {[%clk 0:01:33.5]} 32... Kf8 {[%clk
0:00:16.1]} 33. Nc5 {[%clk 0:01:31.2]} 33... Bd6 {[%clk 0:00:15.5]} 34. Nxa6
{[%clk 0:01:30]} 34... Ke7 {[%clk 0:00:15.4]} 35. c5 {[%clk 0:01:29]} 35... Be5
{[%clk 0:00:14.9]} 36. Nb4 {[%clk 0:01:24.3]} 36... Ke6 {[%clk 0:00:14.2]} 37.
Kf1 {[%clk 0:01:22.1]} 37... Bc3 {[%clk 0:00:13.9]} 38. a3 {[%clk 0:01:22.5]}
38... Ke5 {[%clk 0:00:11.8]} 39. Ke2 {[%clk 0:01:22.5]} 39... Bd4 {[%clk
0:00:10.8]} 40. Nc6+ {[%clk 0:01:20.9]} 40... Kd5 {[%clk 0:00:10.3]} 41. Nxd4
{[%clk 0:01:21.8]} 41... Kxd4 {[%clk 0:00:10.6]} 42. c6 {[%clk 0:01:21.9]} 42...
Kd5 {[%clk 0:00:10.1]} 43. c7 {[%clk 0:01:22.8]} 43... Ke6 {[%clk 0:00:10.1]}
44. c8=Q+ {[%clk 0:01:23.7]} 44... Ke7 {[%clk 0:00:10.6]} 45. a4 {[%clk
0:01:23.3]} 45... g6 {[%clk 0:00:10.3]} 46. a5 {[%clk 0:01:24.2]} 46... gxh5
{[%clk 0:00:10.1]} 47. a6 {[%clk 0:01:25.1]} 47... Kf6 {[%clk 0:00:10.3]} 48. a7
{[%clk 0:01:25.6]} 48... Kg7 {[%clk 0:00:10.9]} 49. a8=Q {[%clk 0:01:26.2]}
49... Kg6 {[%clk 0:00:11.4]} 50. Qe4+ {[%clk 0:01:26.4]} 1-0